Cogmind - Beta 11.2 *** ADVENTURER MODE // 2023.01.08 @ 02:17:41 // Winter2022/Polymind Player: RustyBridges Result: Self-destructed Performance ------------- Evolutions (2) 1000 Regions Visited (5) 1000 Robots Destroyed (12) 60 Value Destroyed (234) 234 Prototype IDs (0) 0 Alien Tech Used (0) 0 Bonus (1272) 1272 TOTAL SCORE: 3326 Bonus ------- Polymind Skill 1240 High Alert Combat Kills 4 Follower Combat Kills 28 Cogmind --------- Core Integrity 195/550 Matter 0/0 Energy 100/100 System Corruption 0% Temperature Cool (0) Movement Core (50) Location -8/Materials Parts ------- > --- POWER (1) -------- (None) > --- PROPULSION (2) --- (None) > --- UTILITY (3) ------ (None) > --- WEAPON (1) ------- (None) > --- INVENTORY (0) ---- (None) Peak State ------------ > --- POWER ------------ Light Deuterium Engine > --- PROPULSION ------- Combat Airjet Combat Airjet > --- UTILITY ---------- Launcher Guidance Computer Improved Light Armor Plating Shock Absorption System > --- WEAPON ----------- Mini Grenade Launcher > --- INVENTORY -------- (None) [Rating: 26] Favorites ----------- Power Light Deuterium Engine Engine Light Deuterium Engine Propulsion Combat Airjet Hover Unit Combat Airjet Utility Launcher Guidance Computer Device Shock Absorption System Processor Launcher Guidance Computer Protection Improved Light Armor Plating Weapon Mini Grenade Launcher Launcher Mini Grenade Launcher Build | -11 -10 -10 -9 -9 -8 ------- Run | Scr Mat Min Mat Min Mat Slots Evolved . | . . . . . . Power . | . . . . . . Propulsion . | . . . . . . Utility . | . . . . . . Weapon . | . . . . . . Parts Attached . | . . . . . . Power . | . . . . . . Engine . | . . . . . . Core . | . . . . . . Reactor . | . . . . . . Propulsion . | . . . . . . Treads . | . . . . . . Leg . | . . . . . . Wheel . | . . . . . . Hover . | . . . . . . Flight . | . . . . . . Utility . | . . . . . . Device . | . . . . . . Storage . | . . . . . . Processor . | . . . . . . Hackware . | . . . . . . Protection . | . . . . . . Artifact . | . . . . . . Weapon . | . . . . . . Energy Gun . | . . . . . . Energy Cannon . | . . . . . . Ballistic Gun . | . . . . . . Ballistic Cannon . | . . . . . . Launcher . | . . . . . . Special Weapon . | . . . . . . Impact Weapon . | . . . . . . Slashing Weapon . | . . . . . . Piercing Weapon . | . . . . . . Special Melee Weapon . | . . . . . . Unidentified Prototypes . | . . . . . . Parts Lost . | . . . . . . Power . | . . . . . . Propulsion . | . . . . . . Utility . | . . . . . . Weapon . | . . . . . . Highest Loss Streak . | . . . . . . To Critical Strikes . | . . . . . . Average Slot Usage (%) 80 | . . 60 100 100 66 Engine 11 | . . 8 14 14 9 Hover 22 | . . 16 28 28 18 Device 11 | . . 8 14 14 9 Processor 11 | . . 8 14 14 9 Protection 11 | . . 8 14 14 9 Launcher 11 | . . 8 14 14 9 Naked Turns 71 | . 14 17 . . 40 Heaviest Build 12 | . . 12 12 12 12 Greatest Support 24 | 3 3 24 24 24 24 Greatest Overweight (x) . | . . . . . . Average Overweight (x) . | . . . . . . Largest Inventory Capacity 1 | . . 1 1 1 1 Average Capacity . | . . . 1 1 . Most Carried 1 | . . . 1 1 1 Average Carried . | . . . . 1 . Final Capacity 1 | . . 1 1 1 . Final Carried 1 | . . . 1 1 . Class Distribution -------------------- 79% | Demolisher 20% | Cogmind Dominant Class ---------------- Cogmind | -10/Materials Demolisher | -10/Mines Demolisher | -9/Materials Demolisher | -9/Mines Demolisher | -8/Materials Resources | -11 -10 -10 -9 -9 -8 ----------- Run | Scr Mat Min Mat Min Mat Matter Collected 38 | . . 6 . 30 2 Remotely . | . . . . . . Salvage Created 211 | . . 10 105 . 96 Parts 16 | . . 1 9 . 6 Haulers Intercepted 1 | . . . . . 1 Recyclers Shooed 1 | . . 1 . . . Parts Field Recycled . | . . . . . . Retrieved Matter . | . . . . . . Parts Self-Destructed . | . . . . . . Prevented . | . . . . . . Kills | -11 -10 -10 -9 -9 -8 ------- Run | Scr Mat Min Mat Min Mat Combat Hostiles Destroyed 8 | . . 1 6 . 1 AOE 8 | . . 1 6 . 1 Classes Destroyed 8 | . . 2 4 . 2 Builder 1 | . . 1 . . . Hauler 1 | . . . . . 1 Operator 1 | . . . 1 . . Watcher 1 | . . . 1 . . Swarmer 5 | . . . 5 . . Grunt 1 | . . . . . 1 Sentry 1 | . . . 1 . . Demolisher 1 | . . 1 . . . Best Kill Streak 8 | . . 2 8 . 2 Combat Bots Only 6 | . . 1 6 . 1 Max Kills in Single Turn 2 | . . 1 2 . 2 Gunslinging . | . . . . . . Exploded 2 | . . 1 2 . 1 Melee . | . . . . . . Uniques/NPCs Destroyed . | . . . . . . Combat | -11 -10 -10 -9 -9 -8 -------- Run | Scr Mat Min Mat Min Mat Damage Taken 566 | . . 61 27 . 478 Core 412 | . . 57 . . 355 Absorbed by Shields . | . . . . . . Core Remaining (%) 92 | 100 . 77 . 100 . Volleys Fired 17 | . . 8 6 . 3 Largest 1 | . . 1 1 . 1 Hottest 30 | . . 30 30 . 30 Shots Fired 17 | . . 8 6 . 3 Gun . | . . . . . . Cannon . | . . . . . . Launcher 17 | . . 8 6 . 3 Special . | . . . . . . Kinetic . | . . . . . . Thermal . | . . . . . . Explosive 17 | . . 8 6 . 3 Electromagnetic . | . . . . . . Robot Hit Streak 8 | . . 3 5 . 8 Robot Miss Streak 2 | . . 2 1 . . Penetration Max . | . . . . . . Secondary Targets . | . . . . . . Shots Hit Robots 12 | . . 4 5 . 3 Core Hits 22 | . . 10 8 . 4 Critical Kills . | . . . . . . Critical Parts Destroyed . | . . . . . . Critical Strikes . | . . . . . . Melee Attacks . | . . . . . . Impact . | . . . . . . Slashing . | . . . . . . Piercing . | . . . . . . Sneak Attacks . | . . . . . . Combat Hostiles . | . . . . . . Follow-up Attacks . | . . . . . . Damage Inflicted 945 | . . 166 533 . 246 Guns . | . . . . . . Cannons . | . . . . . . Explosions 906 | . . 166 533 . 207 Melee . | . . . . . . Ramming 39 | . . . . . 39 Kinetic . | . . . . . . Thermal . | . . . . . . Explosive 906 | . . 166 533 . 207 Electromagnetic . | . . . . . . Impact . | . . . . . . Slashing . | . . . . . . Piercing . | . . . . . . Highest Corruption . | . . . . . . Average Corruption . | . . . . . . Corruption Purged . | . . . . . . Corruption Blocked . | . . . . . . Overload Shots . | . . . . . . Overflow Damage 21 | . . 9 12 . . Projectiles . | . . . . . . Explosions 21 | . . 9 12 . . Melee . | . . . . . . Knockbacks 1 | . . . . . 1 Impact 1 | . . . . . 1 Kinetic . | . . . . . . Secondary . | . . . . . . Self-Inflicted Damage 22 | . . 3 . . 19 Shots 5 | . . 3 . . 2 Rammed 11 | . . . . . 11 Targets Rammed 11 | . . . . . 11 Kicked . | . . . . . . Crushed . | . . . . . . Highest Temperature 1 | . . . . . 1 Average Temperature 1 | . . . . . 1 Received Heat Transfer 81 | . . . . . 81 Siege Activations . | . . . . . . Robots Corrupted . | . . . . . . Combat Hostiles . | . . . . . . Parts Fried . | . . . . . . Impact Corruptions . | . . . . . . Robots Melted . | . . . . . . Combat Hostiles . | . . . . . . Parts Melted . | . . . . . . Heat Transferred . | . . . . . . Parts Sabotaged . | . . . . . . Parts Stolen . | . . . . . . Parts Stripped . | . . . . . . Power Chain Reactions . | . . . . . . Missiles Intercepted . | . . . . . . Alert | -11 -10 -10 -9 -9 -8 ------- Run | Scr Mat Min Mat Min Mat Peak Influence 450 | . . 104 450 148 201 Initial 148 | . . . 34 148 48 Average 124 | . . 45 134 148 160 Maximum Alert Level 2 | . . . 2 . 1 Low Security (%) 90 | 100 100 100 77 100 90 Level 1 8 | . . . 18 . 9 Level 2 1 | . . . 4 . . Level 3 . | . . . . . . Level 4 . | . . . . . . Level 5 . | . . . . . . High Security . | . . . . . . Max Security . | . . . . . . Squads Dispatched 1 | . . . . . 1 Investigation . | . . . . . . Extermination . | . . . . . . Reinforcement 1 | . . . . . 1 Assault . | . . . . . . Garrison . | . . . . . . Intercept . | . . . . . . Searches Triggered . | . . . . . . Construction Impeded . | . . . . . . Haulers Reinforced . | . . . . . . Active Scanning Responses . | . . . . . . Cargo Convoy Interrupts . | . . . . . . Stealth | -11 -10 -10 -9 -9 -8 --------- Run | Scr Mat Min Mat Min Mat Distress Signals 1 | . . . 1 . . Communications Jammed . | . . . . . . Distress Signals . | . . . . . . Times Spotted 18 | . . 4 8 . 6 Peak Tracking Total 4 | . . 2 4 . 4 Tactical Retreats 1 | . . . . . 1 Traps | -11 -10 -10 -9 -9 -8 ------- Run | Scr Mat Min Mat Min Mat Traps Triggered . | . . . . . . Indirectly . | . . . . . . Trap Hack Attempts . | . . . . . . Triggered . | . . . . . . Disarmed . | . . . . . . Reprogrammed . | . . . . . . Reused . | . . . . . . Traps Extracted . | . . . . . . Installed . | . . . . . . Triggered . | . . . . . . Machines | -11 -10 -10 -9 -9 -8 ---------- Run | Scr Mat Min Mat Min Mat Machines Disabled 3 | . . . 3 . . Max in Single Turn 2 | . . . 2 . . Machines Sabotaged . | . . . . . . Garrisons Compromised . | . . . . . . Overloaded Fab Kills . | . . . . . . Hacking | -11 -10 -10 -9 -9 -8 --------- Run | Scr Mat Min Mat Min Mat Machines Accessed 2 | . . . 1 . 1 Terminals 2 | . . . 1 . 1 Fabricators . | . . . . . . Repair Stations . | . . . . . . Recycling Units . | . . . . . . Scanalyzers . | . . . . . . Garrison Access . | . . . . . . Total Hacks 3 | . . . 2 . 1 Successful 3 | . . . 2 . 1 Failed . | . . . . . . Catastrophic . | . . . . . . Database Lockouts . | . . . . . . Manual . | . . . . . . Terminals 3 | . . . 2 . 1 Fabricators . | . . . . . . Repair Stations . | . . . . . . Recycling Units . | . . . . . . Scanalyzers . | . . . . . . Garrison Access . | . . . . . . Terminal Hacks 3 | . . . 2 . 1 Emergency Access Points 1 | . . . 1 . . Hauler Manifests 1 | . . . 1 . . Registered Components 1 | . . . . . 1 Fabricator Hacks . | . . . . . . Repair Station Hacks . | . . . . . . Recycling Unit Hacks . | . . . . . . Scanalyzer . | . . . . . . Garrison Access Hacks . | . . . . . . Unauthorized Hacks . | . . . . . . Terminals . | . . . . . . Fabricators . | . . . . . . Repair Stations . | . . . . . . Recycling Units . | . . . . . . Scanalyzers . | . . . . . . Garrison Access . | . . . . . . Data Cores Recovered . | . . . . . . Used . | . . . . . . Hacking Detections . | . . . . . . Full Trace Events . | . . . . . . Feedback Events . | . . . . . . Feedback Blocked . | . . . . . . Robot Schematics Acquired . | . . . . . . Robots Built . | . . . . . . Authchips . | . . . . . . Time . | . . . . . . Total Robot Build Rating . | . . . . . . Part Schematics Acquired . | . . . . . . Parts Built . | . . . . . . Authchips . | . . . . . . Time . | . . . . . . Total Part Build Rating . | . . . . . . Parts Repaired . | . . . . . . Time . | . . . . . . Parts Recycled . | . . . . . . Recycled Matter . | . . . . . . Retrieved Matter . | . . . . . . Retrieved Components . | . . . . . . Parts Scanalyzed . | . . . . . . Part Schematics Acquired . | . . . . . . Parts Damaged . | . . . . . . Bothacking | -11 -10 -10 -9 -9 -8 ------------ Run | Scr Mat Min Mat Min Mat Used RIF Installer . | . . . . . . Robots Hacked 1 | . . 1 . . . Non-combat . | . . . . . . Combat 1 | . . 1 . . . Robot Hacks Applied 1 | . . 1 . . . find_shortcuts 1 | . . 1 . . . Relay Couplers Released . | . . . . . . Fabnet Peak Effective % . | . . . . . . Robots Rewired . | . . . . . . Allies Hacked . | . . . . . . Hacks Repelled . | . . . . . . Allies | -11 -10 -10 -9 -9 -8 -------- Run | Scr Mat Min Mat Min Mat Total Allies 2 | . . . . 2 . Largest Group 2 | . . . . 2 1 Highest-Rated Group 38 | . . . . 38 31 Highest-Rated Ally 31 | . . . . 31 31 Total Orders . | . . . . . . Ally Attacks 13 | . . . . . 13 Total Damage 127 | . . . . . 127 Kills 4 | . . . . . 4 Allies Corrupted . | . . . . . . Allies Melted . | . . . . . . Intel | -11 -10 -10 -9 -9 -8 ------- Run | Scr Mat Min Mat Min Mat Robot Analysis Total 1 | . . 1 . . . Derelict Logs Recovered . | . . . . . . Drone Launches . | . . . . . . Drone Recoveries . | . . . . . . Exploration | -11 -10 -10 -9 -9 -8 ------------- Run | Scr Mat Min Mat Min Mat Turns Passed 364 | 11 14 47 105 65 122 Spaces Moved 443 | 23 27 52 122 86 133 Core 118 | 23 27 33 . . 35 Treads . | . . . . . . Legs . | . . . . . . Wheels . | . . . . . . Hover 325 | . . 19 122 86 98 Flight . | . . . . . . Fastest Speed 50 | 50 50 50 76 76 50 Average Speed 69 | 50 50 59 76 76 69 Slowest Speed 76 | 50 50 76 76 76 76 Overloaded Moves . | . . . . . . Propulsion Burnouts . | . . . . . . Robots Hopped . | . . . . . . Cave-ins Triggered 1 | . . . . . 1 Exploration Rate (%) 19 | 3 10 19 23 40 24 Regions Visited 5 Branch Regions 2 Pre-discovered Areas . | . . . . . . Known Exits Taken . | . . . . . . Unknown Exits Taken 5 | 1 1 1 1 1 . Scrap Searched 1 | . . . . 1 . Spaces Dug . | . . . . . . Terrain Destroyed 105 | . . 46 36 . 23 Melee . | . . . . . . Projectile . | . . . . . . AOE 105 | . . 46 36 . 23 Terrain Rammed . | . . . . . . Walls Destroyed . | . . . . . . Machines Disabled . | . . . . . . Actions | -11 -10 -10 -9 -9 -8 --------- Run | Scr Mat Min Mat Min Mat Total 480 | 22 26 59 128 85 160 Wait 11 | . . . . . 11 Move 438 | 22 26 51 121 85 133 Hop . | . . . . . . Pick Up 2 | . . . 1 . 1 Fast Attach . | . . . . . . Attach . | . . . . . . Detach . | . . . . . . Swap . | . . . . . . Drop 1 | . . . . . 1 Fire 17 | . . 8 6 . 3 Melee . | . . . . . . Ram 11 | . . . . . 11 Kick . | . . . . . . Crush . | . . . . . . Escape Stasis . | . . . . . . Rewire . | . . . . . . Trap . | . . . . . . Miscellaneous . | . . . . . . Route ------- -11/Scrapyard -10/Materials -10/Mines -9/Materials -9/Mines -8/Materials History --------- Turn | Location | Event 4 | -11/Scrapyard | Discovered new exit (range 15) 12 | -11/Scrapyard | Entered Materials 18 | -10/Materials | Discovered new exit (range 16) 26 | -10/Materials | Entered Mines 38 | -10/Mines | Assembled infested the area 47 | -10/Mines | Discovered new exit (range 11) 73 | -10/Mines | Entered Materials 165 | -9/Materials | Discovered new exit (range 14) 178 | -9/Materials | Entered Mines 232 | -9/Mines | Discovered new exit (range 15) 243 | -9/Mines | Entered Materials 243 | -8/Materials | Accompanied by 1 ally 248 | -8/Materials | Led the pair of lost Derelicts to an unsafe place 278 | -8/Materials | Crushed by falling debris 334 | -8/Materials | Core integrity fell below 50% 365 | -8/Materials | Self-destructed Last Messages --------------- 00334_ K-01 Serf collects debris. 00335_ The unstable cave ceiling collapses. 00338_ K-01 Serf collects debris. 00356_ Penetrated by Slug. 00356_ Slammed into G-47 Trooper. 00356_ G-47 Trooper knocked back. 00357_ K-01 Serf collects debris. 00357_ Slammed into G-47 Trooper. 00358_ K-01 Serf collects debris. 00358_ Slammed into G-47 Trooper. 00359_ U-05 Engineer lays Concrete. 00359_ Slammed into G-47 Trooper. 00360_ U-05 Engineer lays Concrete. 00360_ Slammed into G-47 Trooper. 00362_ K-01 Serf collects debris. 00362_ Slammed into H-55 Commando. 00364_ The unstable cave ceiling collapses. 00364_ Slammed into H-55 Commando. 00365_ K-01 Serf collects debris. 00365_ Slug penetrates Wall. Map ----- +----------------------------------------------------+ | ?????????????????????????????????????????????????? | | ?????????????????????????????????????????????????? | | ?????????!???????????????????????????????????????? | | ?????????????????????????????????????????????????? | | ?????????????????????????????????????????????????? | | ?????????????????????????????????????????????????? | | ?????????????????????????????????????????????????? | | ?????????????????????????????????????????????????? | | ?????????????????????????????????????????????????? | | ?????????????????????????????????????????????????? | | ?????????????????????????????????????????????????? | | ?????????????????????????????????????????????????? | | ?????????????????????????????????????????????????? | | ??????????????????########???????????????????????? | | ??????????????????# #???????????????????????? | | ??????????????????# """ #??######???????????????? | | ??????????????????# """ #?? ? #???????????????? | | ??????????????????#] """ #?? #???????????????? | | ??????????????????# #? +???????????????? | | ??????????????????# #? #???????????????? | | ???????????????#######+#### #???????????????? | | ???????????????# ^!! # #???????????????? | | ???????????????# !! + #???????????????? | | ???????????????# !# k #???????????????? | | ???????????????# ! =%h#######???????????????? | | ???????????????# %@###########????????????? | | ???????????????# ""g % % #????????????? | | ???????????????# """r !! #??????##+##?? | | ???????????????# """ !! ! #??????# ##? | | ???????????????# ^""" ! #####??# ?? | | ???????????????# # * + ??? #?? | | ???????????????# ##?????# #?? | | ???????????????# # % ] #?????# #?? | | ???????????????# ##?????# #?? | | ???????????????# !! ###o ######## ### | | ???????????? !! | | ???????????? | | ??????????? | | ????????????#### #### ###+############## ### | | ???????????????# ???# #? ?????????????# #?? | | ???????????????# ????# # ?????????????# #?? | | ???????????????# ????# # ?????????????# #?? | | ???????????????# ?????# + ??????######### #?? | | ??????????????????????# # ????+ #?? | | ??????????????????????# # ??????######### #?? | | ??????????????????????##+####???????######## #?! | | ????????????????????????????????????#] "T" # # | | ????????????????????????????????????# # # | | ????????????????????????????????????#""" / + | | ????????????????????????????????????#""" * # # | +----------------------------------------------------+ Best States ------------- Heat Dissipation 31 Energy Generation 24 Energy Capacity 100 Matter Stores 120 Matter Capacity 150 Sight Range 16 Terrain Scan Density 10 Armor Coverage 150 Resistance: KI 20 Resistance: TH 20 Resistance: EX 95 Resistance: EM 20 Resistance: I 45 Resistance: S 20 Resistance: P 20 Evasion (%) 50 Launcher Accuracy 20 Offensive Hacking 10 Item Schematics ----------------- None Robot Schematics ------------------ None Fabricated ------------ Nothing Alien Tech Used ----------------- None Achievements -------------- None Challenges ------------ None Polymind | -11 -10 -10 -9 -9 -8 ---------- Run | Scr Mat Min Mat Min Mat Hosts 1 | . . 1 . . . Combat Hostiles 1 | . . 1 . . . Allies . | . . . . . . Unique Host Classes 1 | . . 1 . . . Average Host Suspicion 64 | . . 99 75 16 76 Unsuspicious Activity . | . . . . . . Returns to Shadow . | . . . . . . Fuzzy Dispatches . | . . . . . . Protomatter Created 3 | . . . 3 . . Used 40 | . . 40 . . . Decayed . | . . . . . . Highest Spend 40 | . . 40 . . . Top 5 Hosts by Kills: D-53 Grenadier (-10/Mines: 8) Game ------ Seed CouplerDisposableClaw Manual? 0 Play Time 00:05:54 Cumulative 4.8 hours Start 2023.01.07 @ 00:42:25 End 2023.01.08 @ 02:17:41 Sessions 3 Manual Loads 0 Difficulty Adventurer Special Mode Winter2022/Polymind Game No. 21 Rogue 7 Adventurer 14 Explorer 0 Win Type - Total 0 Types 0/0/0/0/0/0/0/0/0 Lore% 6 Gallery% 14 Achievement% 14 Wizard Run 0 Options --------- ASCII 0 Keyboard 1 Movement Numpad Keybinds 0 Fullscreen 2 Font 24/Proggy Map View 76x50 Tactical HUD 1 Map Filters NONE Filters NONE Steam 1 RUN: b465f076-d594-40f8-ba1b-2499c96bac52